bitfinex-derivatives/quotes_BTCF0:USTF0_20260221
["timestamp","ask_amount","ask_price","bid_price","bid_amount"]
[1771640099154,0.014702,68036.0,68027.0,0.014704]
[1771640099358,0.014702,68036.0,68025.0,0.27839626]
[1771640099359,0.014702,68038.0,68029.0,0.014703]
[1771640099561,0.014702,68035.0,68030.0,0.014703]
[1771640099762,0.014702,68038.0,68033.0,0.014703]
[1771640100061,0.014702,68037.0,68032.0,0.015543]
[1771640100260,0.014701,68041.0,68029.0,0.014703]
[1771640100463,0.03180331,68804.0,68043.0,0.0147]
[1771640100464,0.0147,68048.0,68043.0,0.0147]
[1771640100863,0.014699,68049.0,68044.0,0.0147]
[1771640101370,0.014699,68051.0,68044.0,0.0147]
[1771640101371,0.014699,68050.0,68044.0,0.0147]
[1771640101559,0.014699,68051.0,68044.0,0.0147]
[1771640102465,0.014698,68054.0,68046.0,0.0294]
[1771640102771,0.014698,68056.0,68048.0,0.168612]
[1771640103160,0.014698,68056.0,68048.0,0.183311]
[1771640103370,0.029396,68056.0,68048.0,0.168612]
[1771640103560,0.029396,68056.0,68046.0,0.0147]
[1771640103561,0.014696,68062.0,68053.0,0.014698]
[1771640103872,0.014697,68062.0,68054.0,0.014698]
[1771640104071,0.014697,68061.0,68053.0,0.029396]
[1771640104474,0.014697,68061.0,68053.0,0.014698]
[1771640106675,0.014696,68064.0,68056.0,0.014697]
[1771640106876,0.014696,68064.0,68057.0,0.014697]
[1771640107274,0.014696,68064.0,68056.0,0.014698]
[1771640107475,0.014696,68063.0,68056.0,0.014698]
[1771640108776,0.014696,68064.0,68057.0,0.014697]
[1771640109079,0.014696,68064.0,68056.0,0.014698]
[1771640109677,0.029392,68064.0,68056.0,0.014698]
[1771640110178,0.014696,68064.0,68056.0,0.014698]
[1771640111181,0.014695,68067.0,68059.0,0.014697]
[1771640111369,0.014696,68066.0,68059.0,0.014697]
[1771640112476,0.029392,68066.0,68058.0,0.014697]
[1771640114183,0.014696,68065.0,68058.0,0.014697]
[1771640114384,0.014696,68064.0,68057.0,0.014697]
[1771640115679,0.014695,68068.0,68054.0,0.17386305]
[1771640115976,0.014697,68062.0,68054.0,0.17386305]
[1771640117685,0.014697,68061.0,68054.0,0.17386305]
[1771640119881,0.014697,68061.0,68054.0,0.15916505]
[1771640120084,0.014697,68058.0,68050.0,0.029398]
[1771640120288,0.014697,68058.0,68050.0,0.014699]
[1771640120790,0.014697,68059.0,68052.0,0.014699]
[1771640121090,0.014697,68061.0,68053.0,0.014698]
[1771640123090,0.014697,68060.0,68053.0,0.014698]
[1771640123886,0.014697,68059.0,68052.0,0.014699]
[1771640124082,0.014697,68059.0,68053.0,0.00084]
[1771640124288,0.014697,68059.0,68052.0,0.014699]
[1771640124991,0.014697,68059.0,68052.0,0.014698]
[1771640125393,0.014697,68059.0,68049.0,0.014699]
[1771640125587,0.014697,68059.0,68052.0,0.014698]
[1771640126389,0.014697,68059.0,68053.0,0.014698]
[1771640128498,0.014697,68059.0,68052.0,0.029396]
[1771640128884,0.014697,68059.0,68053.0,0.014698]
[1771640132994,0.014699,68052.0,68046.0,0.15916505]
[1771640133291,0.014695,68067.0,68046.0,0.0147]
[1771640133292,0.014698,68053.0,68046.0,0.0147]
[1771640133698,0.014699,68052.0,68046.0,0.0147]
[1771640134896,0.014699,68052.0,68047.0,0.0147]
[1771640136993,0.014699,68051.0,68045.0,0.0147]
[1771640137298,0.014699,68050.0,68045.0,0.0294]
[1771640137502,0.014699,68050.0,68045.0,0.0147]
[1771640138295,0.014699,68050.0,68046.0,0.0147]
[1771640138498,0.014699,68051.0,68046.0,0.0147]
[1771640139000,0.014699,68050.0,68046.0,0.0147]
[1771640144304,0.014699,68050.0,68047.0,0.0147]
[1771640146107,0.014699,68048.0,68044.0,0.0147]
[1771640146309,0.014699,68050.0,68046.0,0.0147]
[1771640146697,0.014699,68050.0,68047.0,0.0147]
[1771640152106,0.014699,68051.0,68047.0,0.0147]
[1771640156608,0.014698,68055.0,68032.0,0.26369226]
[1771640156609,0.029396,68054.0,68032.0,0.26369226]
[1771640156817,0.014701,68043.0,68030.0,0.16608683]
[1771640156999,0.029402,68040.0,68035.0,0.014702]
[1771640157206,0.014702,68038.0,68033.0,0.014703]
[1771640157899,0.0147,68044.0,68030.0,0.16608683]
[1771640158105,0.014703,68034.0,68028.0,0.014704]
[1771640158405,0.014702,68036.0,68030.0,0.014703]
[1771640158609,0.014702,68035.0,68030.0,0.014703]
[1771640159208,0.014702,68036.0,68030.0,0.014703]
[1771640159418,0.014702,68035.0,68029.0,0.014703]
[1771640160213,0.014702,68035.0,68030.0,0.014703]
[1771640160414,0.014702,68035.0,68029.0,0.014703]
[1771640161512,0.014702,68034.0,68027.0,0.014704]
[1771640161708,0.014703,68030.0,68023.0,0.16608883]
[1771640162013,0.029406,68031.0,68024.0,0.014704]
[1771640162208,0.014703,68030.0,68024.0,0.014704]
[1771640162817,0.014704,68029.0,68024.0,0.014704]
[1771640163313,0.007866,68029.0,68024.0,0.014704]
[1771640163516,0.014704,68029.0,68024.0,0.014704]
[1771640163717,0.00784156,68029.0,68024.0,0.014704]
[1771640164412,0.00784376,68031.0,68024.0,0.014704]
[1771640164619,0.014704,68029.0,68023.0,0.16608883]
[1771640165419,0.00784292,68029.0,68023.0,0.16608883]
[1771640166121,0.014703,68030.0,68023.0,0.16608883]
[1771640166319,0.014704,68029.0,68023.0,0.16608883]
[1771640167322,0.014703,68031.0,68025.0,0.014704]
[1771640167523,0.014703,68030.0,68025.0,0.014704]
[1771640167820,0.014703,68031.0,68025.0,0.014704]
[1771640168122,0.014703,68030.0,68025.0,0.014704]
[1771640168323,0.014704,68029.0,68024.0,0.014704]
[1771640169422,0.014703,68030.0,68025.0,0.16357767]
[1771640169726,0.014703,68033.0,68025.0,0.16357767]
[1771640169921,0.014703,68031.0,68025.0,0.16357767]
[1771640171323,0.014703,68030.0,68025.0,0.16357767]
[1771640172118,0.014703,68031.0,68025.0,0.16357767]
[1771640172826,0.014703,68031.0,68026.0,0.014704]
[1771640173230,0.014703,68032.0,68026.0,0.014704]
[1771640179334,0.014703,68033.0,68027.0,0.014704]
[1771640179531,0.014699,68052.0,68033.0,0.14887367]
[1771640179736,0.0147,68043.0,68034.0,0.16357567]
[1771640180030,0.0147,68044.0,68035.0,0.16357567]
[1771640180031,0.014701,68041.0,68035.0,0.16357567]
[1771640180238,0.014701,68040.0,68035.0,0.14887367]
[1771640181544,0.014701,68039.0,68035.0,0.14887367]
[1771640184446,0.014701,68040.0,68035.0,0.14887367]
[1771640184641,0.014701,68043.0,68035.0,0.14887367]
[1771640184940,0.18705399,68042.0,68035.0,0.14887367]
[1771640185246,0.014701,68040.0,68035.0,0.14887367]
[1771640186236,0.014701,68041.0,68035.0,0.14887367]
[1771640186838,0.014701,68040.0,68035.0,0.14887367]
[1771640188746,0.014701,68039.0,68035.0,0.14887367]
[1771640189040,0.014701,68040.0,68035.0,0.14887367]
[1771640189239,0.014701,68039.0,68035.0,0.14887367]
[1771640190436,0.014701,68040.0,68035.0,0.14887367]
[1771640190637,0.014701,68042.0,68035.0,0.14887367]
[1771640190838,0.0147,68044.0,68037.0,0.16357567]
[1771640191446,0.014701,68043.0,68037.0,0.14887367]
[1771640195337,0.014701,68042.0,68037.0,0.14887367]
[1771640196243,0.0147,68044.0,68037.0,0.14887367]
[1771640196244,0.014701,68043.0,68037.0,0.14887367]
[1771640196750,0.20157583,68042.0,68037.0,0.14887367]
[1771640196943,0.20157583,68041.0,68037.0,0.14887367]
[1771640197144,0.20157583,68040.0,68037.0,0.16357567]
[1771640197345,0.20157583,68039.0,68037.0,0.16357567]
[1771640197646,0.20157583,68038.0,68037.0,0.16357567]
[1771640199736,0.0147,68048.0,68039.0,0.14654509]
[1771640199938,0.029398,68049.0,68042.0,0.014701]
[1771640200647,0.014699,68048.0,68042.0,0.014701]
[1771640201349,0.014699,68048.0,68041.0,0.014701]
[1771640203854,0.0147,68045.0,68037.0,0.014702]
[1771640204154,0.0147,68044.0,68037.0,0.014702]
[1771640204858,0.0147,68045.0,68038.0,0.014702]
[1771640208054,0.0147,68045.0,68039.0,0.00088]
[1771640208257,0.0147,68045.0,68038.0,0.014702]
[1771640210963,0.0147,68046.0,68038.0,0.014702]
[1771640211149,0.0147,68046.0,68038.0,0.029403]
[1771640213249,0.0147,68045.0,68038.0,0.014701]
[1771640214064,0.0147,68045.0,68039.0,0.00088]
[1771640214364,0.0147,68045.0,68038.0,0.014701]
[1771640215768,0.0147,68044.0,68037.0,0.014702]
[1771640217071,0.0147,68044.0,68038.0,0.00088]
[1771640217272,0.0147,68044.0,68037.0,0.014702]
[1771640218171,0.014701,68043.0,68036.0,0.014702]
[1771640219076,0.0147,68044.0,68037.0,0.014702]
[1771640219777,0.0294,68044.0,68036.0,0.014702]
[1771640220581,0.0294,68044.0,68036.0,0.029404]
[1771640220582,0.0147,68044.0,68036.0,0.029404]
[1771640221674,0.0147,68044.0,68036.0,0.014702]
[1771640221978,0.0147,68044.0,68037.0,0.014702]
[1771640222371,0.014701,68043.0,68036.0,0.014702]
[1771640222566,0.0147,68046.0,68032.0,0.014703]
[1771640222768,0.014702,68038.0,68030.0,0.014703]
[1771640222974,0.014702,68036.0,68029.0,0.014704]
[1771640223177,0.014702,68037.0,68029.0,0.014704]
[1771640224283,0.014702,68036.0,68029.0,0.014704]
[1771640224975,0.014702,68036.0,68030.0,0.014703]
[1771640225577,0.014702,68036.0,68032.0,0.001]
[1771640226081,0.014702,68036.0,68030.0,0.014703]
[1771640226283,0.014702,68036.0,68029.0,0.014703]
[1771640226676,0.014702,68035.0,68029.0,0.014703]
[1771640230192,0.014702,68034.0,68029.0,0.014703]
[1771640231893,0.014702,68034.0,68030.0,0.014703]
[1771640233693,0.014702,68035.0,68030.0,0.014703]
[1771640239591,0.014701,68041.0,68027.0,0.044112]
[1771640239795,0.014701,68043.0,68036.0,0.014702]
[1771640239997,0.014701,68042.0,68037.0,0.014702]
[1771640240191,0.014701,68042.0,68036.0,0.014702]
[1771640241494,0.014701,68043.0,68036.0,0.014702]
[1771640245094,0.029402,68043.0,68036.0,0.014702]
[1771640245396,0.014701,68041.0,68031.0,0.014703]
[1771640245597,0.014702,68038.0,68031.0,0.014703]
[1771640245900,0.014702,68036.0,68029.0,0.014703]
[1771640246601,0.014702,68035.0,68028.0,0.014704]
[1771640247104,0.014702,68035.0,68029.0,0.014703]
[1771640248106,0.014702,68034.0,68029.0,0.014703]
[1771640248698,0.17989337,68041.0,68026.0,0.014704]
[1771640248699,0.014703,68033.0,68026.0,0.014704]
[1771640248898,0.014703,68032.0,68027.0,0.014704]
[1771640250002,0.014703,68031.0,68027.0,0.014704]
[1771640250307,0.014703,68031.0,68025.0,0.014704]
[1771640250500,0.014703,68031.0,68026.0,0.014704]
[1771640251709,0.014703,68030.0,68026.0,0.014704]
[1771640253108,0.014704,68029.0,68025.0,0.014704]
[1771640254910,0.014704,68029.0,68025.0,0.19071395]
[1771640256213,0.014704,68029.0,68025.0,0.19069815]
[1771640256415,0.014703,68031.0,68025.0,0.19069815]
[1771640256416,0.014703,68030.0,68025.0,0.19069815]
[1771640257498,0.014703,68030.0,68026.0,0.014704]
[1771640259415,0.014703,68031.0,68026.0,0.014704]
[1771640261806,0.014703,68031.0,68026.0,0.029408]
[1771640262115,0.029406,68032.0,68027.0,0.014704]
[1771640263116,0.014703,68032.0,68027.0,0.014704]
[1771640267810,0.014703,68032.0,68027.0,0.029408]
[1771640268720,0.15424448,68037.0,68020.0,0.17599415]
[1771640269016,0.014705,68024.0,68018.0,0.014706]
[1771640269211,0.014704,68025.0,68019.0,0.014706]
[1771640269517,0.014705,68024.0,68018.0,0.014706]
[1771640269718,0.014705,68024.0,68018.0,0.029412]
[1771640272216,0.014705,68024.0,68019.0,0.014706]
[1771640273625,0.014704,68027.0,68020.0,0.014705]
[1771640273919,0.029408,68027.0,68021.0,0.014705]
[1771640274113,0.014704,68026.0,68020.0,0.014705]
[1771640274520,0.014704,68027.0,68020.0,0.02941]
[1771640275921,0.014704,68027.0,68020.0,0.014705]
[1771640276121,0.014704,68026.0,68020.0,0.014705]
[1771640280726,0.014704,68026.0,68019.0,0.014706]
[1771640282217,0.014705,68023.0,68017.0,0.014706]
[1771640282524,0.014705,68023.0,68016.0,0.014706]
[1771640283225,0.014705,68022.0,68016.0,0.014706]
[1771640283525,0.014705,68022.0,68017.0,0.014706]
[1771640285326,0.014704,68028.0,68015.0,0.014706]
[1771640285521,0.014705,68021.0,68016.0,0.014706]
[1771640287028,0.02941,68021.0,68016.0,0.014706]
[1771640287933,0.014705,68020.0,68016.0,0.014706]
[1771640289229,0.014705,68021.0,68017.0,0.014706]
[1771640289426,0.014705,68024.0,68019.0,0.014706]
[1771640289619,0.014705,68023.0,68019.0,0.014706]
[1771640291525,0.014705,68024.0,68019.0,0.014706]
[1771640295331,0.014704,68025.0,68019.0,0.014706]
[1771640299729,0.014704,68026.0,68019.0,0.014706]
[1771640299931,0.014704,68026.0,68020.0,0.014705]
[1771640300236,0.014704,68029.0,68022.0,0.014705]
[1771640300730,0.014704,68028.0,68022.0,0.014705]
[1771640301032,0.014703,68032.0,68025.0,0.014704]
[1771640304236,0.014703,68032.0,68022.0,0.014705]
[1771640304237,0.014704,68029.0,68022.0,0.014705]
[1771640305335,0.014704,68028.0,68022.0,0.014705]
[1771640305929,0.014704,68029.0,68022.0,0.014705]
[1771640312350,0.029408,68029.0,68022.0,0.014705]
[1771640314352,0.014704,68029.0,68022.0,0.014705]
[1771640316355,0.014704,68029.0,68023.0,0.014705]
[1771640323065,0.014703,68030.0,68023.0,0.014705]
[1771640324164,0.029407,68030.0,68023.0,0.014705]
[1771640329568,0.014704,68029.0,68023.0,0.014705]
[1771640331971,0.014704,68029.0,68022.0,0.014705]
[1771640332270,0.014704,68029.0,68022.0,0.02941]
[1771640333273,0.014703,68030.0,68023.0,0.014705]
[1771640333572,0.014704,68029.0,68023.0,0.014705]
[1771640336077,0.014703,68030.0,68023.0,0.014705]
[1771640339880,0.029407,68030.0,68023.0,0.014705]
[1771640340177,0.014704,68029.0,68023.0,0.014705]
[1771640343482,0.014704,68029.0,68022.0,0.014705]
[1771640344283,0.014704,68029.0,68023.0,0.014705]
[1771640345268,0.014704,68029.0,68022.0,0.014705]
[1771640348177,0.014703,68030.0,68023.0,0.014705]
[1771640348379,0.014702,68037.0,68023.0,0.014705]
[1771640348580,0.014703,68030.0,68023.0,0.014705]
[1771640349379,0.014704,68029.0,68023.0,0.014705]
[1771640349982,0.029406,68030.0,68023.0,0.014705]
[1771640350184,0.014703,68030.0,68023.0,0.014705]
[1771640351288,0.014703,68030.0,68022.0,0.014705]
[1771640351289,0.014704,68029.0,68022.0,0.014705]
[1771640352888,0.007238,68030.0,68022.0,0.014705]
[1771640353188,0.014704,68029.0,68022.0,0.014705]
[1771640354288,0.014704,68029.0,68023.0,0.014705]
[1771640355189,0.014704,68029.0,68022.0,0.014705]
[1771640355692,0.014703,68030.0,68022.0,0.014705]
[1771640355880,0.014703,68030.0,68023.0,0.014705]
[1771640356080,0.029407,68030.0,68023.0,0.014705]
[1771640357186,0.014704,68029.0,68022.0,0.014705]
[1771640363494,0.014703,68034.0,68026.0,0.014704]
[1771640363693,0.014703,68033.0,68026.0,0.014704]
[1771640372311,0.0147,68044.0,68020.0,0.13805256]
[1771640372512,0.014702,68037.0,68030.0,0.014703]
[1771640372813,0.014702,68036.0,68029.0,0.014703]
[1771640373015,0.014702,68037.0,68030.0,0.014703]
[1771640373214,0.014702,68036.0,68029.0,0.014703]
[1771640373417,0.014701,68040.0,68029.0,0.014703]
[1771640373605,0.014702,68037.0,68029.0,0.029406]
[1771640373811,0.014702,68036.0,68027.0,0.014704]
[1771640374119,0.014702,68034.0,68026.0,0.014704]
[1771640375518,0.014702,68034.0,68027.0,0.014704]
[1771640377822,0.014702,68035.0,68027.0,0.014704]
[1771640378124,0.014702,68035.0,68028.0,0.014704]
[1771640379422,0.014702,68037.0,68028.0,0.014704]
[1771640379626,0.014702,68035.0,68028.0,0.014704]
[1771640379816,0.014702,68036.0,68028.0,0.029408]
[1771640380125,0.014702,68036.0,68028.0,0.014704]
[1771640380425,0.014702,68037.0,68029.0,0.014703]
[1771640380920,0.014702,68038.0,68030.0,0.014703]
[1771640381126,0.014702,68037.0,68029.0,0.014703]
[1771640381625,0.014702,68037.0,68030.0,0.014703]
[1771640382727,0.014702,68037.0,68029.0,0.014703]
[1771640383126,0.014702,68037.0,68030.0,0.014703]
[1771640383320,0.014701,68039.0,68032.0,0.014703]
[1771640383825,0.0147,68047.0,68040.0,0.014701]
[1771640384122,0.0147,68047.0,68027.0,0.14817393]
[1771640384123,0.0147,68046.0,68038.0,0.014701]
[1771640384320,0.0147,68046.0,68038.0,0.029402]
[1771640384520,0.0147,68047.0,68039.0,0.014701]
[1771640384829,0.0147,68046.0,68038.0,0.014701]
[1771640385028,0.0147,68045.0,68038.0,0.014701]
[1771640385521,0.0147,68045.0,68037.0,0.014702]
[1771640385717,0.0147,68044.0,68037.0,0.014702]
[1771640385913,0.0147,68044.0,68036.0,0.014702]
[1771640385914,0.0147,68043.0,68036.0,0.014702]
[1771640386623,0.0147,68044.0,68036.0,0.014702]
[1771640387129,0.0147,68044.0,68037.0,0.014702]
[1771640393535,0.0147,68044.0,68036.0,0.014702]
[1771640395339,0.0147,68045.0,68037.0,0.014702]
[1771640396538,0.0147,68045.0,68038.0,0.014702]
[1771640400737,0.0147,68047.0,68040.0,0.014701]
[1771640402445,0.0147,68047.0,68038.0,0.014701]
[1771640402744,0.0147,68046.0,68038.0,0.014701]
[1771640403038,0.0147,68046.0,68040.0,0.00092]
[1771640403239,0.0147,68046.0,68038.0,0.014701]
[1771640403841,0.0147,68046.0,68039.0,0.014701]
[1771640404039,0.0294,68047.0,68039.0,0.014701]
[1771640404440,0.0147,68046.0,68037.0,0.014702]
[1771640404641,0.0147,68047.0,68036.0,0.014702]
[1771640404839,0.0147,68047.0,68039.0,0.029402]
[1771640405044,0.0147,68047.0,68039.0,0.014701]
[1771640405349,0.014699,68048.0,68040.0,0.014701]
[1771640405538,0.014699,68048.0,68039.0,0.014701]
[1771640405539,0.0147,68047.0,68039.0,0.014701]
[1771640410948,0.0147,68046.0,68039.0,0.014701]
[1771640413741,0.0147,68046.0,68038.0,0.014702]
[1771640415548,0.014698,68054.0,68046.0,0.00787426]
[1771640415754,0.014698,68055.0,68047.0,0.0147]
[1771640416044,0.014698,68057.0,68049.0,0.014699]
[1771640416249,0.014698,68057.0,68047.0,0.0147]
[1771640416250,0.014698,68055.0,68047.0,0.0147]
[1771640416452,0.029396,68057.0,68049.0,0.014699]
[1771640416747,0.03840589,68061.0,68050.0,0.014699]
[1771640416748,0.014697,68060.0,68050.0,0.014699]
[1771640416948,0.014697,68059.0,68051.0,0.014699]
[1771640417643,0.014697,68058.0,68050.0,0.014699]
[1771640418039,0.014697,68058.0,68052.0,0.00096]
[1771640418243,0.014697,68058.0,68050.0,0.014699]
[1771640418743,0.014698,68057.0,68049.0,0.014699]
[1771640419152,0.014697,68058.0,68050.0,0.014699]
[1771640419551,0.014697,68057.0,68049.0,0.014699]
[1771640419954,0.014697,68057.0,68049.0,0.029398]
[1771640420148,0.014697,68057.0,68050.0,0.014699]
[1771640420349,0.014697,68058.0,68050.0,0.014699]
[1771640421056,0.014697,68058.0,68052.0,0.00096]
[1771640421256,0.014697,68058.0,68050.0,0.014699]
[1771640424057,0.014697,68058.0,68052.0,0.00092]
[1771640424260,0.014697,68058.0,68051.0,0.014699]
[1771640424961,0.014697,68059.0,68051.0,0.014699]
[1771640425351,0.014697,68058.0,68051.0,0.014699]
[1771640425551,0.014697,68059.0,68051.0,0.014699]
[1771640426060,0.014697,68060.0,68052.0,0.014698]
[1771640426360,0.014697,68059.0,68051.0,0.014699]
[1771640427060,0.014697,68059.0,68052.0,0.014699]
[1771640427353,0.014697,68059.0,68051.0,0.014699]
[1771640427549,0.014695,68067.0,68050.0,0.014699]
[1771640427749,0.014697,68061.0,68053.0,0.014698]
[1771640427949,0.014697,68060.0,68053.0,0.014698]
[1771640428145,0.014697,68060.0,68052.0,0.014698]
[1771640429663,0.014697,68060.0,68053.0,0.014698]
[1771640432065,0.014697,68061.0,68053.0,0.014698]
[1771640432454,0.014697,68060.0,68052.0,0.014698]
[1771640432657,0.014697,68060.0,68052.0,0.029396]
[1771640432953,0.014697,68061.0,68053.0,0.014698]
[1771640433664,0.029394,68061.0,68053.0,0.014698]
[1771640436266,0.014697,68058.0,68050.0,0.014699]
[1771640437470,0.014697,68060.0,68053.0,0.014698]
[1771640437869,0.014697,68061.0,68053.0,0.014698]
[1771640439264,0.029394,68061.0,68053.0,0.014698]
[1771640439458,0.014697,68061.0,68053.0,0.014698]
[1771640439759,0.029394,68061.0,68053.0,0.014698]
[1771640440968,0.014697,68060.0,68053.0,0.014698]
[1771640441371,0.014697,68060.0,68052.0,0.014699]
[1771640442566,0.014697,68059.0,68052.0,0.014699]
[1771640443268,0.014697,68059.0,68051.0,0.014699]
[1771640443571,0.014697,68060.0,68052.0,0.014698]
[1771640443968,0.014697,68059.0,68051.0,0.014699]
[1771640444170,0.014697,68060.0,68052.0,0.014698]
[1771640445064,0.014697,68060.0,68054.0,0.00084]
[1771640445265,0.014697,68060.0,68052.0,0.014698]
[1771640445673,0.029394,68060.0,68052.0,0.014698]
[1771640445878,0.014698,68057.0,68049.0,0.014699]
[1771640453279,0.014698,68057.0,68047.0,0.0147]
[1771640453280,0.014698,68054.0,68047.0,0.0147]
[1771640453582,0.014698,68055.0,68047.0,0.0147]
[1771640454283,0.014698,68054.0,68047.0,0.0147]
[1771640454981,0.014698,68054.0,68043.0,0.0147]
[1771640454982,0.014699,68051.0,68044.0,0.0147]
[1771640455179,0.014697,68058.0,68044.0,0.0147]
[1771640455180,0.014699,68052.0,68045.0,0.0147]
[1771640455482,0.014698,68053.0,68046.0,0.0147]
[1771640455681,0.014698,68053.0,68045.0,0.0147]
[1771640455682,0.014699,68052.0,68045.0,0.0147]
[1771640455982,0.014699,68051.0,68045.0,0.0147]
[1771640456281,0.014699,68052.0,68045.0,0.0147]
[1771640456482,0.014699,68052.0,68046.0,0.0147]
[1771640457179,0.17983041,68060.0,68045.0,0.0147]
[1771640457180,0.13048149,68069.0,68052.0,0.014698]
[1771640457388,0.014697,68057.0,68051.0,0.014699]
[1771640457582,0.014697,68058.0,68051.0,0.014699]
[1771640458284,0.014697,68058.0,68050.0,0.014699]
[1771640458680,0.014697,68058.0,68051.0,0.014699]
[1771640459286,0.014697,68059.0,68051.0,0.014699]
[1771640461288,0.014698,68055.0,68046.0,0.0147]
[1771640461480,0.014698,68055.0,68047.0,0.0147]
[1771640463089,0.014698,68055.0,68048.0,0.014699]
[1771640463287,0.014698,68056.0,68049.0,0.014699]
[1771640475188,0.014698,68056.0,68050.0,0.014699]
[1771640475391,0.014697,68058.0,68050.0,0.014699]
[1771640475590,0.014698,68057.0,68050.0,0.014699]
[1771640476797,0.014698,68056.0,68050.0,0.014699]
[1771640476996,0.014698,68056.0,68049.0,0.014699]
[1771640478094,0.014698,68056.0,68050.0,0.015539]
[1771640478399,0.014698,68056.0,68050.0,0.014699]
[1771640479400,0.014698,68057.0,68050.0,0.014699]
[1771640481100,0.014698,68057.0,68051.0,0.00096]
[1771640481300,0.014698,68057.0,68050.0,0.014699]
[1771640482202,0.014698,68057.0,68051.0,0.014699]
[1771640482807,0.014698,68055.0,68048.0,0.014699]
[1771640485613,0.014698,68055.0,68048.0,0.029398]
[1771640486414,0.014698,68055.0,68048.0,0.014699]
[1771640487528,0.014698,68055.0,68049.0,0.014699]
[1771640487820,0.014698,68057.0,68050.0,0.014699]
[1771640488014,0.014697,68057.0,68051.0,0.014699]
[1771640488217,0.014697,68058.0,68051.0,0.014699]
[1771640489621,0.014697,68059.0,68051.0,0.014699]
[1771640491924,0.014697,68060.0,68053.0,0.014698]
[1771640492726,0.014697,68060.0,68052.0,0.014698]
[1771640492924,0.014697,68059.0,68052.0,0.014698]
[1771640496319,0.014697,68059.0,68051.0,0.014699]
[1771640497719,0.014696,68065.0,68044.0,0.11538061]
[1771640497927,0.014696,68064.0,68056.0,0.014698]
[1771640498114,0.014696,68065.0,68057.0,0.014697]
[1771640498515,0.014696,68064.0,68056.0,0.014698]
[1771640498824,0.014696,68063.0,68056.0,0.014698]
[1771640499419,0.014696,68063.0,68055.0,0.014698]
[1771640500429,0.014696,68065.0,68055.0,0.014698]
[1771640500430,0.014696,68064.0,68056.0,0.014698]
[1771640501322,0.001,68063.0,68056.0,0.014698]
[1771640501925,0.014696,68064.0,68056.0,0.014698]
[1771640502730,0.029392,68064.0,68056.0,0.014698]
[1771640503320,0.014696,68064.0,68056.0,0.014698]
[1771640504417,0.014695,68069.0,68051.0,0.11394221]
[1771640504615,0.014695,68069.0,68054.0,0.014698]
[1771640504818,0.014695,68069.0,68061.0,0.014696]
[1771640505018,0.014695,68070.0,68061.0,0.014696]
[1771640505221,0.02939,68070.0,68061.0,0.014696]
[1771640505420,0.014695,68069.0,68061.0,0.014696]
[1771640505924,0.014695,68069.0,68061.0,0.029392]
[1771640506229,0.014693,68080.0,68060.0,0.10442049]
[1771640506429,0.014693,68076.0,68068.0,0.014695]
[1771640506922,0.014693,68077.0,68068.0,0.014695]
[1771640509032,0.014693,68077.0,68068.0,0.02939]
[1771640509327,0.014693,68077.0,68068.0,0.014695]
[1771640510425,0.014693,68077.0,68069.0,0.014695]
[1771640511725,0.015693,68077.0,68069.0,0.014695]
[1771640512927,0.03769254,68084.0,68069.0,0.014695]
[1771640512928,0.12958299,68090.0,68069.0,0.10176383]
[1771640513127,0.014689,68096.0,68087.0,0.014691]
[1771640513333,0.014688,68100.0,68080.0,0.014692]
[1771640513334,0.01469,68090.0,68080.0,0.014692]
[1771640513528,0.11314387,68098.0,68080.0,0.014692]
[1771640513735,0.70208064,68099.0,68080.0,0.014692]
[1771640513736,0.014691,68089.0,68080.0,0.014692]
[1771640514123,0.014691,68088.0,68078.0,0.014693]
[1771640514330,0.014691,68088.0,68070.0,0.07232887]
[1771640514331,0.014691,68088.0,68077.0,0.014693]
[1771640514529,0.014691,68086.0,68077.0,0.014693]
[1771640514928,0.014691,68086.0,68078.0,0.014693]
[1771640515639,0.014692,68084.0,68074.0,0.014694]
[1771640515936,0.014693,68079.0,68071.0,0.014694]
[1771640516336,0.029386,68077.0,68070.0,0.014695]
[1771640516526,0.014693,68077.0,68070.0,0.014695]
[1771640516726,0.014692,68083.0,68068.0,0.014695]
[1771640516934,0.014693,68076.0,68069.0,0.014695]
[1771640517438,0.014693,68076.0,68070.0,0.014695]
[1771640517630,0.014692,68083.0,68064.0,0.014696]
[1771640517631,0.11314387,68083.0,68064.0,0.014696]
[1771640517935,0.014694,68073.0,68067.0,0.014695]
[1771640518527,0.014694,68073.0,68068.0,0.014695]
[1771640518731,0.014694,68074.0,68069.0,0.014695]
[1771640519433,0.1278538,68073.0,68069.0,0.014695]
[1771640520039,0.029388,68074.0,68069.0,0.014695]
[1771640520240,0.014694,68073.0,68069.0,0.014695]
[1771640520440,0.1425478,68073.0,68069.0,0.014695]
[1771640520640,0.014694,68073.0,68069.0,0.014695]
[1771640520844,0.1278538,68072.0,68069.0,0.014695]
[1771640522142,0.1278538,68072.0,68070.0,0.014695]
[1771640522646,0.1278538,68071.0,68070.0,0.014695]
[1771640522843,0.014694,68073.0,68070.0,0.014695]
[1771640523845,0.014694,68073.0,68069.0,0.014695]
[1771640524046,0.1278538,68072.0,68069.0,0.014695]
[1771640524544,0.1278538,68071.0,68069.0,0.014695]
[1771640524743,0.71677464,68074.0,68069.0,0.014695]
[1771640524946,0.014694,68075.0,68070.0,0.014695]
[1771640525145,0.68738864,68075.0,68070.0,0.014695]
[1771640525446,0.68738864,68075.0,68071.0,0.014694]
[1771640525838,0.81524244,68075.0,68071.0,0.014694]
[1771640526348,0.80054844,68075.0,68071.0,0.014694]